bitfinex/quotes_BTCUSD_20250330
["timestamp","ask_amount","ask_price","bid_price","bid_amount"]
[1743331322612,0.3,83307.0,83302.0,0.136]
[1743331322841,0.3,83307.0,83302.0,0.13614145]
[1743331323890,0.0223632,83306.0,83302.0,0.13614145]
[1743331324337,0.3,83304.0,83302.0,0.13614145]
[1743331325278,0.0223632,83303.0,83302.0,0.13614145]
[1743331325821,0.03350417,83303.0,83302.0,0.13614145]
[1743331326127,0.03350417,83303.0,83302.0,0.13714145]
[1743331326828,0.54867417,83303.0,83302.0,0.13714145]
[1743331327057,0.56090585,83303.0,83302.0,0.13614145]
[1743331328397,0.56090585,83303.0,83302.0,0.13714145]
[1743331329630,0.56090585,83303.0,83302.0,0.13710145]
[1743331330443,0.56090585,83303.0,83302.0,0.15141674]
[1743331330848,0.56090585,83303.0,83302.0,0.01545674]
[1743331332128,0.56090585,83303.0,83302.0,0.01562534]
[1743331333969,0.80099285,83303.0,83302.0,0.01562534]
[1743331334174,0.81299685,83303.0,83302.0,0.01562534]
[1743331335498,0.57290985,83303.0,83302.0,0.01562534]
[1743331335704,0.3,83302.0,83297.0,0.57172]
[1743331336659,0.35773985,83303.0,83297.0,0.57172]
[1743331336862,0.3,83299.0,83297.0,0.57172]
[1743331337826,0.3,83299.0,83297.0,0.57272]
[1743331338094,0.0223632,83298.0,83297.0,0.57272]
[1743331338459,0.5375332,83298.0,83297.0,0.57472]
[1743331339059,0.5375332,83298.0,83297.0,0.57272]
[1743331339296,0.5375332,83298.0,83297.0,0.57472]
[1743331339705,0.5375332,83298.0,83297.0,0.003]
[1743331339935,0.5375332,83298.0,83297.0,0.002]
[1743331340297,0.5375332,83298.0,83297.0,0.003]
[1743331344747,0.5375332,83298.0,83297.0,0.01495402]
[1743331345852,0.5375332,83298.0,83297.0,0.01512262]
[1743331347808,0.2375332,83298.0,83297.0,0.01512262]
[1743331348008,0.2375332,83298.0,83297.0,0.07282762]
[1743331348713,0.2375332,83298.0,83297.0,0.08736847]
[1743331350356,0.2375332,83298.0,83297.0,0.47508641]
[1743331354672,0.2375332,83298.0,83297.0,0.59904141]
[1743331357286,0.2375332,83298.0,83297.0,0.61104641]
[1743331360191,0.2375332,83298.0,83297.0,0.59904141]
[1743331361728,0.2375332,83298.0,83297.0,0.41738141]
[1743331361933,0.2375332,83298.0,83297.0,0.53880056]
[1743331365632,0.24869535,83298.0,83297.0,0.53880056]
[1743331366446,0.28441483,83298.0,83297.0,0.53880056]
[1743331367307,0.24869535,83298.0,83297.0,0.53880056]
[1743331367504,0.24869535,83298.0,83297.0,0.40284056]
[1743331367706,0.24869535,83298.0,83297.0,0.53880056]
[1743331367911,0.24869535,83298.0,83297.0,0.15108262]
[1743331373779,0.24729535,83298.0,83297.0,0.15108262]
[1743331373903,0.24729535,83298.0,83297.0,0.21459198]
[1743331374333,0.24729535,83298.0,83297.0,0.20258698]
[1743331374534,0.24729535,83298.0,83297.0,0.44269098]
[1743331374940,0.24729535,83298.0,83297.0,0.40572747]
[1743331375931,0.24729535,83298.0,83297.0,0.16562347]
[1743331378151,0.22633215,83298.0,83297.0,0.16562347]
[1743331379718,0.22633215,83298.0,83297.0,0.55334141]
[1743331379926,0.22633215,83298.0,83297.0,0.79344541]
[1743331380395,0.22633215,83298.0,83297.0,0.77890456]
[1743331380587,0.22633215,83298.0,83297.0,0.53880056]
[1743331384222,0.22633215,83298.0,83297.0,0.53876056]
[1743331384654,0.52633215,83298.0,83297.0,0.53876056]
[1743331385243,0.89620236,83298.0,83297.0,0.01512262]
[1743331385457,0.65610136,83298.0,83297.0,0.01512262]
[1743331385660,0.65610136,83298.0,83297.0,0.0031686]
[1743331386254,0.65610136,83298.0,83297.0,0.0011686]
[1743331386479,0.65610136,83298.0,83292.0,0.13592]
[1743331386480,0.3,83295.0,83292.0,0.13592]
[1743331387214,0.3,83293.0,83292.0,0.13592]
[1743331388050,0.31116215,83293.0,83292.0,0.13892]
[1743331388255,0.31116215,83293.0,83292.0,0.13792]
[1743331388647,0.01116215,83293.0,83292.0,0.13992]
[1743331388844,0.03350621,83293.0,83292.0,0.13992]
[1743331389249,0.03350621,83293.0,83292.0,0.13792]
[1743331389571,0.24867621,83293.0,83292.0,0.14092]
[1743331391118,0.24867621,83293.0,83292.0,0.15289863]
[1743331392238,0.24867621,83293.0,83292.0,0.01697863]
[1743331394959,0.24867621,83293.0,83292.0,0.01714723]
[1743331397035,0.54867621,83293.0,83292.0,0.01714723]
[1743331406997,0.54867621,83293.0,83292.0,0.0051686]
[1743331408274,0.04122434,83293.0,83292.0,0.0051686]
[1743331410967,0.04122434,83293.0,83292.0,0.01714723]
[1743331411192,0.04122434,83293.0,83292.0,0.0051686]
[1743331411367,0.04122434,83293.0,83292.0,0.01714723]
[1743331411564,0.04122434,83293.0,83292.0,0.0051686]
[1743331411801,0.04122434,83293.0,83292.0,0.01714723]
[1743331412030,0.04122434,83293.0,83292.0,0.0051686]
[1743331412506,0.04122434,83293.0,83292.0,0.01714723]
[1743331412707,0.04122434,83293.0,83292.0,0.0051686]
[1743331412936,0.04122434,83293.0,83292.0,0.01714723]
[1743331413119,0.04122434,83293.0,83292.0,0.0051686]
[1743331413350,0.04122434,83293.0,83292.0,0.01714723]
[1743331413524,0.04122434,83293.0,83292.0,0.0051686]
[1743331413730,0.04122434,83293.0,83292.0,0.01714723]
[1743331413957,0.04122434,83293.0,83292.0,0.0001686]
[1743331414130,0.04122434,83293.0,83292.0,0.01214723]
[1743331414345,0.04122434,83293.0,83292.0,0.0001686]
[1743331418680,0.04122434,83293.0,83292.0,0.0011686]
[1743331419181,0.04122434,83293.0,83292.0,0.01314723]
[1743331419341,0.04122434,83293.0,83292.0,0.0011686]
[1743331419538,0.04122434,83293.0,83292.0,0.01314723]
[1743331419740,0.04122434,83293.0,83292.0,0.0011686]
[1743331419954,0.04122434,83293.0,83292.0,0.01314723]
[1743331420153,0.04122434,83293.0,83292.0,0.0011686]
[1743331420347,0.04122434,83293.0,83292.0,0.01314723]
[1743331420548,0.04156174,83293.0,83292.0,0.0011686]
[1743331420752,0.04156174,83293.0,83292.0,0.01314723]
[1743331420962,0.04156174,83293.0,83292.0,0.0011686]
[1743331421183,0.04156174,83293.0,83292.0,0.01314723]
[1743331422454,0.04156174,83293.0,83292.0,0.0099822]
[1743331422805,0.04156174,83293.0,83290.0,0.02391941]
[1743331423010,0.04156174,83293.0,83291.0,0.00998712]
[1743331423207,0.0111754,83292.0,83291.0,0.00998712]
[1743331423774,0.0335256,83292.0,83291.0,0.00998712]
[1743331424398,0.0747456,83292.0,83291.0,0.00998712]
[1743331425135,0.0747456,83292.0,83291.0,0.01198712]
[1743331426250,0.0747456,83292.0,83291.0,0.01298712]
[1743331432464,0.0635702,83292.0,83291.0,0.01298712]
[1743331433258,0.04122,83292.0,83291.0,0.01315582]
[1743331434871,0.0523933,83292.0,83291.0,0.01315582]
[1743331436573,0.07473953,83292.0,83291.0,0.01315582]
[1743331438269,0.07473953,83292.0,83291.0,0.0031687]
[1743331438399,0.07473953,83292.0,83291.0,0.01315582]
[1743331440343,0.07473953,83292.0,83291.0,0.0083226]
[1743331441123,0.07473953,83292.0,83290.0,0.11142684]
[1743331441325,0.07473953,83292.0,83291.0,0.0083226]
[1743331441521,0.31485853,83292.0,83291.0,0.0083226]
[1743331441707,0.7303173,83292.0,83291.0,0.0083226]
[1743331441910,0.7303173,83292.0,83276.0,0.13588]
[1743331441911,0.3,83284.0,83276.0,0.13588]
[1743331442102,0.3,83284.0,83276.0,0.13593087]
[1743331442620,0.3,83284.0,83277.0,0.00839154]
[1743331443004,0.04122,83280.0,83277.0,0.00839154]
[1743331444382,0.02232705,83279.0,83277.0,0.00839154]
[1743331445738,0.02232705,83279.0,83276.0,0.16024983]
[1743331445871,0.04122,83278.0,83276.0,0.16024983]
[1743331446076,0.06354705,83278.0,83276.0,0.16024983]
[1743331446334,0.06354705,83278.0,83277.0,0.00839154]
[1743331446516,0.06354705,83278.0,83276.0,0.16024983]
[1743331446806,0.06354705,83278.0,83277.0,0.001]
[1743331447145,0.06354705,83278.0,83277.0,0.0001687]
[1743331450429,0.06354705,83278.0,83277.0,0.00856024]
[1743331450867,0.06354705,83278.0,83277.0,0.0001687]
[1743331451710,0.31571305,83278.0,83277.0,0.0001687]
[1743331452212,0.61571305,83278.0,83277.0,0.0001687]
[1743331452687,0.61571305,83278.0,83277.0,0.0001287]
[1743331454281,0.62685486,83278.0,83277.0,0.0001287]
[1743331456784,0.63587639,83278.0,83277.0,0.0001287]
[1743331459337,0.80534776,83278.0,83277.0,0.0001287]
[1743331460087,0.84098769,83278.0,83277.0,0.0001287]
[1743331460296,0.540188,83268.0,83267.0,0.0001686]
[1743331460508,0.552197,83268.0,83267.0,0.00064043]
[1743331461475,0.675917,83268.0,83267.0,0.00064043]
[1743331461991,0.73388398,83268.0,83267.0,0.00064043]
[1743331462190,0.74502579,83268.0,83267.0,0.00064043]
[1743331463155,0.73388398,83268.0,83267.0,0.00064043]
[1743331463370,0.73488398,83268.0,83267.0,0.00064043]
[1743331463750,0.74601442,83268.0,83267.0,0.00064043]
[1743331465636,0.79101442,83268.0,83267.0,0.00064043]
[1743331466969,0.79201442,83268.0,83267.0,0.00064043]
[1743331467389,0.79401442,83268.0,83267.0,0.00064043]
[1743331468495,0.79201442,83268.0,83267.0,0.00064043]
[1743331468881,0.79501442,83268.0,83267.0,0.00064043]
[1743331469080,0.79301442,83268.0,83267.0,0.00064043]
[1743331469285,0.79601442,83268.0,83267.0,0.00064043]
[1743331471149,0.3,83254.0,83252.0,0.0001686]
[1743331471685,0.312011,83254.0,83252.0,0.0001686]
[1743331472473,0.36997798,83254.0,83252.0,0.0001686]
[1743331472827,0.38110842,83254.0,83252.0,0.0001686]
[1743331473028,0.42232842,83254.0,83252.0,0.0001686]
[1743331473836,0.540231,83253.0,83252.0,0.0001686]
[1743331474187,0.56337244,83253.0,83252.0,0.0001686]
[1743331474981,0.62133942,83253.0,83252.0,0.0001686]
[1743331475177,0.63336619,83253.0,83252.0,0.0001686]
[1743331475527,0.67458619,83253.0,83252.0,0.0001686]
[1743331477590,0.68346278,83253.0,83252.0,0.0001686]
[1743331478764,0.75986278,83253.0,83252.0,0.0001686]
[1743331478951,0.68346278,83253.0,83252.0,0.0001686]
[1743331480276,0.67233234,83253.0,83252.0,0.0001686]
[1743331480711,0.63669241,83253.0,83252.0,0.0001686]
[1743331482199,0.63769241,83253.0,83252.0,0.0001686]
[1743331483471,0.67330209,83253.0,83252.0,0.0001686]
[1743331484119,0.68443157,83253.0,83252.0,0.0001686]
[1743331487653,0.55226,83247.0,83246.0,8e-05]
[1743331489421,0.62134575,83247.0,83246.0,8e-05]
[1743331489635,0.62134575,83247.0,83243.0,0.13592]
[1743331489636,0.012013,83240.0,83239.0,0.02112195]
[1743331489856,0.012013,83240.0,83239.0,0.16562072]
[1743331490241,0.252282,83240.0,83239.0,0.16562072]
[1743331490487,0.06996927,83240.0,83239.0,0.16562072]
[1743331490705,0.06908575,83240.0,83239.0,0.16562072]
[1743331491066,0.06908575,83240.0,83239.0,0.2409623]
[1743331491476,0.06908575,83240.0,83239.0,0.21984035]
[1743331491801,0.11030575,83240.0,83239.0,0.21984035]
[1743331493057,0.07464035,83240.0,83239.0,0.21984035]
[1743331493260,0.06351087,83240.0,83239.0,0.21984035]
[1743331495727,0.0746676,83240.0,83239.0,0.21984035]
[1743331496330,0.0746676,83240.0,83239.0,0.26764035]
[1743331500610,0.0746676,83240.0,83239.0,0.2821812]
[1743331501090,0.0746676,83240.0,83239.0,0.5344652]
[1743331501493,0.0334476,83240.0,83239.0,0.5344652]
[1743331502067,0.0334476,83240.0,83239.0,0.2821812]
[1743331502532,0.0334476,83240.0,83239.0,0.26764035]
[1743331503170,0.0334476,83240.0,83239.0,0.19244035]
[1743331503364,0.0334476,83240.0,83239.0,0.14464035]
[1743331503646,0.5334476,83240.0,83239.0,0.00872035]
[1743331503822,0.5454606,83240.0,83239.0,0.00872035]
[1743331504074,0.5454606,83240.0,83239.0,0.14464035]
[1743331504548,0.56916816,83240.0,83239.0,0.14464035]
[1743331504752,0.36309164,83240.0,83239.0,0.14464035]
[1743331505928,0.36309164,83240.0,83239.0,0.22564035]
[1743331506133,0.36309164,83240.0,83239.0,0.4804522]
[1743331506347,0.36309164,83240.0,83239.0,0.5402652]
[1743331506978,0.36309164,83240.0,83239.0,0.66055003]
[1743331507382,0.32737108,83240.0,83239.0,0.66055003]
[1743331507779,0.32737108,83240.0,83239.0,0.5402652]
[1743331507986,0.01233541,83254.0,83253.0,0.1288]
[1743331508203,0.3,83267.0,83253.0,0.26468]
[1743331508457,0.540191,83267.0,83253.0,0.27318977]
[1743331508702,0.3,83261.0,83253.0,0.19218977]
[1743331508943,0.31193687,83261.0,83253.0,0.19218977]
[1743331509386,0.3,83256.0,83254.0,0.0237253]
[1743331510004,0.3,83256.0,83255.0,0.00849992]
[1743331510344,0.5,83257.0,83256.0,0.01454085]
[1743331510553,0.5,83257.0,83256.0,0.09554085]
[1743331510740,0.5,83257.0,83256.0,0.10403584]
[1743331510948,0.5,83257.0,83256.0,0.10303584]
[1743331511713,0.5,83257.0,83256.0,0.10103584]
[1743331511915,0.5,83257.0,83256.0,0.08949499]
[1743331512147,0.5,83257.0,83256.0,0.34172799]
[1743331512777,0.5,83257.0,83256.0,0.08949499]
[1743331513688,0.5,83257.0,83256.0,0.10403584]
[1743331514105,0.5,83257.0,83256.0,0.10503584]
[1743331514636,0.5,83257.0,83256.0,0.39621293]
[1743331516198,0.5,83257.0,83256.0,0.40822393]
[1743331516550,0.5,83257.0,83256.0,0.74398678]
[1743331517745,0.52228842,83257.0,83256.0,0.74398678]
[1743331518182,0.52228842,83257.0,83256.0,1.31606678]
[1743331518957,0.5,83257.0,83256.0,1.31606678]
[1743331519363,0.5,83257.0,83256.0,1.48325161]
[1743331520549,0.01190382,83266.0,83261.0,0.240207]
[1743331520869,0.0003374,83268.0,83263.0,0.240202]
[1743331521077,0.0003374,83268.0,83264.0,0.01454085]
[1743331521277,0.0003374,83268.0,83264.0,0.02299642]
[1743331521470,0.5,83266.0,83264.0,0.02299642]
[1743331521878,0.5,83266.0,83262.0,0.01454085]
[1743331522064,0.5,83266.0,83265.0,0.0229915]
[1743331522209,0.5,83266.0,83265.0,0.01454085]
[1743331522403,0.5,83266.0,83265.0,0.0229915]
[1743331522815,0.5,83266.0,83265.0,0.1588315]
[1743331523254,0.51235056,83266.0,83265.0,0.1588315]
[1743331523457,0.51235056,83266.0,83265.0,0.54654944]
[1743331525209,0.51268796,83266.0,83265.0,0.54654944]
[1743331526873,0.5003374,83266.0,83265.0,0.54654944]
[1743331527303,0.51241872,83266.0,83265.0,0.54654944]
[1743331532757,0.51241872,83266.0,83265.0,0.41070944]
[1743331532970,0.216825,83266.0,83265.0,0.38771794]
[1743331533227,0.216825,83266.0,83265.0,0.53200859]
[1743331534040,0.216825,83266.0,83265.0,0.39616859]
[1743331534245,0.228834,83266.0,83265.0,0.53200859]
[1743331534425,0.228834,83266.0,83265.0,0.39616859]
[1743331534631,0.848428,83266.0,83265.0,0.39616859]
[1743331535082,0.87071132,83266.0,83265.0,0.00845065]
[1743331535531,0.312009,83265.0,83261.0,0.13584]
[1743331535755,0.3,83263.0,83261.0,0.13584]
[1743331535937,0.3,83263.0,83262.0,0.00846543]
[1743331536674,0.31201,83263.0,83262.0,0.00846543]
[1743331537154,0.51641,83263.0,83262.0,0.00846543]
[1743331537713,0.552231,83257.0,83256.0,0.7080887]
[1743331538925,0.552231,83257.0,83256.0,0.7090887]
[1743331539289,0.79007788,83257.0,83256.0,0.7090887]
[1743331539493,0.79007788,83257.0,83256.0,0.7100887]
[1743331541053,0.79007788,83257.0,83256.0,0.71858369]
[1743331541254,0.79007788,83257.0,83256.0,0.58274369]
[1743331542105,0.77892922,83257.0,83256.0,0.58274369]
[1743331546222,0.52669822,83257.0,83256.0,0.58274369]
[1743331546805,0.76691822,83257.0,83256.0,0.58274369]
[1743331547988,0.3,83256.0,83253.0,0.13584]
[1743331548748,0.02229822,83255.0,83253.0,0.13584]
[1743331549125,0.02229822,83255.0,83253.0,0.13784]
[1743331549660,0.5044,83254.0,83253.0,0.13884]
[1743331549909,0.5044,83254.0,83253.0,0.13784]
[1743331550079,0.5044,83254.0,83253.0,0.13884]
[1743331550280,0.52669822,83254.0,83253.0,0.13884]
[1743331550725,0.52669822,83254.0,83253.0,0.13684]
[1743331550867,0.52669822,83254.0,83253.0,0.13584]
[1743331551232,0.52669822,83254.0,83253.0,0.13784]
[1743331551518,0.52669822,83254.0,83253.0,0.13584]
[1743331551813,0.52669822,83254.0,83253.0,0.13684]
[1743331552407,0.53870922,83254.0,83253.0,0.001]
[1743331552806,0.61870922,83254.0,83253.0,0.001]
[1743331553882,0.53870922,83254.0,83253.0,0.001]
[1743331554096,0.5498473,83254.0,83253.0,0.001]
[1743331555592,0.5378363,83254.0,83253.0,0.001]
[1743331556525,0.5378363,83254.0,83253.0,0.00809394]
[1743331558294,0.5378363,83254.0,83253.0,0.001]
[1743331558528,0.5378363,83254.0,83253.0,0.00809394]
[1743331558761,0.5378363,83254.0,83253.0,0.001]
[1743331558933,0.5378363,83254.0,83253.0,0.00809394]
[1743331559071,0.5378363,83254.0,83253.0,0.001]
[1743331559273,0.5378363,83254.0,83253.0,0.00809394]
[1743331559473,0.5378363,83254.0,83253.0,0.001]
[1743331559738,0.5378363,83254.0,83253.0,0.00809394]
[1743331559941,0.5378363,83254.0,83253.0,0.001]
[1743331560158,0.5378363,83254.0,83253.0,0.00809394]
[1743331560371,0.5378363,83254.0,83253.0,0.001]
[1743331560592,0.2378363,83254.0,83253.0,0.02010494]
[1743331560791,0.2378363,83254.0,83253.0,0.090111]
[1743331560935,0.2378363,83254.0,83253.0,0.09720494]
[1743331561295,0.2378363,83254.0,83253.0,0.11174579]
[1743331561495,0.2378363,83254.0,83253.0,0.16064579]
[1743331562034,0.22669822,83254.0,83253.0,0.28093062]
[1743331562680,0.02229822,83254.0,83253.0,0.28093062]
[1743331563089,0.02229822,83254.0,83253.0,0.28109932]
[1743331564013,0.0003374,83257.0,83256.0,0.012011]
[1743331564357,0.0003374,83257.0,83256.0,0.4068081]
[1743331565268,0.0003374,83257.0,83256.0,0.4078081]
[1743331566141,0.0003374,83257.0,83256.0,0.4849081]
[1743331566322,0.0003374,83257.0,83256.0,0.7251301]
[1743331571800,0.0003374,83257.0,83256.0,0.84541493]
[1743331572001,0.0003374,83257.0,83256.0,0.85995578]
[1743331572204,0.0003374,83257.0,83256.0,0.98024061]
[1743331572434,0.0003374,83257.0,83256.0,0.90755578]
[1743331572823,0.0003374,83257.0,83256.0,0.90655578]
[1743331573231,0.0003374,83257.0,83256.0,1.47855578]
[1743331573861,0.0003374,83257.0,83256.0,1.48155578]
[1743331577610,0.0003374,83266.0,83265.0,0.252205]
[1743331577822,0.0003374,83266.0,83265.0,0.64703068]
[1743331578025,0.0003374,83266.0,83265.0,0.66303711]
[1743331579141,0.0003374,83266.0,83265.0,0.66703711]
[1743331579948,0.0003374,83266.0,83265.0,0.67103711]
[1743331580540,0.0003374,83266.0,83265.0,0.55006221]
[1743331580694,0.0003374,83266.0,83265.0,0.68586221]
[1743331581741,0.0003374,83266.0,83265.0,0.55006221]
[1743331582062,0.0003374,83266.0,83265.0,0.81421707]
[1743331582275,0.0003374,83266.0,83265.0,0.56201207]
[1743331582427,0.0003374,83266.0,83265.0,0.57402107]
[1743331582636,0.0003374,83266.0,83265.0,0.82875792]
[1743331583803,0.0003374,83266.0,83265.0,0.69295792]
[1743331584024,0.0003374,83266.0,83265.0,0.82875792]
[1743331584234,0.0003374,83266.0,83265.0,0.94904275]
[1743331585072,0.0003374,83266.0,83265.0,0.82875792]
[1743331585990,0.0003374,83266.0,83265.0,0.69295792]
[1743331586239,0.0003374,83266.0,83265.0,0.82875792]
[1743331587995,0.0003374,83266.0,83265.0,0.94904275]
[1743331588282,0.0003374,83266.0,83265.0,1.07904275]
[1743331590903,0.0003374,83266.0,83265.0,1.14175528]
[1743331591133,0.0003374,83266.0,83265.0,1.07904275]
[1743331593849,0.0003374,83266.0,83265.0,0.99654275]
[1743331593990,0.0003374,83266.0,83265.0,0.69295792]
[1743331594190,0.0003374,83266.0,83265.0,1.40063792]
[1743331597354,0.01245304,83266.0,83265.0,1.40063792]
[1743331599702,0.0003374,83266.0,83265.0,1.40063792]
[1743331603176,0.0003374,83266.0,83265.0,1.14843292]
[1743331603379,0.0003374,83266.0,83265.0,0.99809207]
[1743331603593,0.2525404,83266.0,83265.0,1.13389207]
[1743331603813,0.0003374,83266.0,83265.0,1.13389207]
[1743331604226,0.5003374,83266.0,83265.0,1.13389207]
[1743331604818,0.7525404,83266.0,83265.0,1.12685726]
[1743331604991,0.7525404,83266.0,83265.0,1.13389207]
[1743331605400,0.5123464,83266.0,83265.0,1.13389207]
[1743331607352,0.5003374,83266.0,83265.0,1.13389207]
[1743331609083,0.5123464,83266.0,83265.0,1.13389207]
[1743331609546,1.0525404,83266.0,83265.0,0.61071153]
[1743331609749,1.1781404,83266.0,83265.0,0.58691481]
[1743331610402,1.1781404,83266.0,83265.0,0.58291481]
[1743331610631,1.1781404,83266.0,83265.0,0.57891481]
[1743331610901,1.1781404,83266.0,83265.0,0.58091481]
[1743331611128,1.1781404,83266.0,83265.0,0.57891481]
[1743331611500,1.1791404,83266.0,83265.0,0.57891481]
[1743331611898,1.1791404,83266.0,83265.0,0.00903481]
[1743331612084,1.1791404,83266.0,83265.0,0.002]
[1743331612286,0.552212,83263.0,83262.0,0.1358]
[1743331613283,0.552227,83258.0,83256.0,0.0001687]
[1743331613489,0.552227,83258.0,83257.0,0.1359687]
[1743331614749,1.052227,83258.0,83257.0,0.1369687]
[1743331615859,1.052227,83258.0,83257.0,0.1389687]
[1743331616810,0.8,83258.0,83257.0,0.1389687]
[1743331626273,0.8003372,83258.0,83257.0,0.14604293]
[1743331626485,0.5003372,83258.0,83257.0,0.14604293]
[1743331626669,0.5003372,83258.0,83257.0,0.17259478]
[1743331626935,0.5003372,83258.0,83257.0,0.75690207]
[1743331627245,0.5003372,83258.0,83257.0,0.88300207]
[1743331627428,0.5003372,83258.0,83257.0,0.80636015]
[1743331628100,0.0003372,83258.0,83257.0,0.80019145]
[1743331628304,0.0003372,83258.0,83257.0,0.80569145]
[1743331628680,0.0003372,83258.0,83257.0,0.80869145]
[1743331628885,0.0003372,83258.0,83257.0,0.92897628]
[1743331629366,0.0003372,83258.0,83257.0,0.92597628]
[1743331629540,0.0003372,83258.0,83257.0,0.92997628]
[1743331629750,0.0003372,83258.0,83257.0,0.92697628]
[1743331629993,0.0003372,83258.0,83257.0,0.93933444]
[1743331630199,0.0003374,83268.0,83265.0,0.252205]
[1743331630384,0.0003374,83268.0,83265.0,0.55407751]
[1743331630627,0.0003374,83268.0,83265.0,0.47026549]
[1743331631398,0.0003374,83268.0,83265.0,0.49732278]
[1743331631600,0.01203746,83285.0,83277.0,0.240162]
[1743331631802,0.00010188,83285.0,83279.0,0.01454085]
[1743331632361,0.00010188,83285.0,83280.0,0.00646093]
[1743331632755,0.5,83282.0,83280.0,0.00646093]
[1743331633349,0.5,83282.0,83280.0,0.01061153]
[1743331634266,0.501,83282.0,83280.0,0.01061153]
[1743331634903,0.501,83282.0,83280.0,0.39765487]
[1743331636161,0.5,83282.0,83280.0,0.39765487]
[1743331636543,0.501,83282.0,83280.0,0.39765487]
[1743331637180,0.501,83282.0,83281.0,0.02392249]
[1743331637595,0.501,83282.0,83281.0,0.0303785]
[1743331638368,0.501,83282.0,83281.0,0.0345291]
[1743331638897,0.5013372,83282.0,83281.0,0.0345291]
[1743331639399,0.5003372,83282.0,83281.0,0.0345291]
[1743331639623,0.5013372,83282.0,83281.0,0.0345291]
[1743331640909,0.8013372,83282.0,83281.0,0.01060661]
[1743331641119,0.8133442,83282.0,83281.0,0.01060661]
[1743331641365,0.8133442,83282.0,83281.0,0.0041506]
[1743331641574,0.8948442,83282.0,83281.0,0.0041506]
[1743331642922,0.8938442,83282.0,83281.0,0.0041506]
[1743331643746,0.9008442,83282.0,83281.0,0.0041506]
[1743331644078,0.012008,83275.0,83272.0,0.1358]
[1743331644394,0.012008,83274.0,83272.0,0.1358]
[1743331644599,0.3,83273.0,83272.0,0.1358]
[1743331646786,0.3,83274.0,83272.0,0.1358]
[1743331646992,0.802,83273.0,83272.0,0.1358]
[1743331647194,0.804,83273.0,83272.0,0.1358]
[1743331647399,0.816008,83273.0,83272.0,0.1358]
[1743331647607,0.812008,83273.0,83272.0,0.1358]
[1743331648197,0.8,83273.0,83272.0,0.1358]
[1743331648549,1.040173,83273.0,83272.0,0.1358]
[1743331648778,1.042173,83273.0,83272.0,0.1358]
[1743331648974,1.054181,83273.0,83272.0,0.1358]
[1743331649993,1.056181,83273.0,83272.0,0.1358]
[1743331651037,0.804,83273.0,83272.0,0.1358]
[1743331651780,0.804,83273.0,83272.0,0.1359686]
[1743331652190,0.804,83273.0,83272.0,0.14246893]
[1743331653109,0.802,83273.0,83272.0,0.14246893]
[1743331653543,0.801,83273.0,83272.0,0.14246893]
[1743331654098,0.802,83273.0,83272.0,0.14246893]
[1743331659342,0.55210879,83273.0,83272.0,0.14246893]
[1743331663441,0.25210879,83273.0,83272.0,0.14246893]
[1743331669979,0.25210879,83273.0,83272.0,0.5013903]
[1743331670193,0.25210879,83273.0,83272.0,0.14246893]
[1743331671869,0.25210879,83273.0,83272.0,0.40919378]
[1743331672277,0.25210879,83273.0,83272.0,0.15700978]
[1743331672483,0.25110879,83273.0,83272.0,0.16901778]
[1743331672683,0.25210879,83273.0,83272.0,0.16901778]
[1743331672888,0.25110879,83273.0,83272.0,0.16901778]
[1743331673070,0.25010879,83273.0,83272.0,0.16901778]
[1743331673895,0.25010879,83273.0,83272.0,0.40919378]
[1743331674094,0.25010879,83273.0,83272.0,0.15447693]
[1743331675903,0.25010879,83273.0,83272.0,0.54152027]
[1743331676105,0.25010879,83273.0,83272.0,0.54228027]
[1743331676514,0.25010879,83273.0,83272.0,0.39371227]
[1743331676713,0.25010879,83273.0,83272.0,0.53027227]
[1743331678410,0.25044599,83273.0,83272.0,0.53027227]
[1743331679255,0.26245399,83273.0,83272.0,0.39371227]
[1743331679454,0.26245399,83273.0,83272.0,0.53027227]
[1743331680337,0.56245399,83273.0,83272.0,0.53023227]
[1743331680537,0.55044599,83273.0,83272.0,0.53023227]
[1743331681721,0.55044599,83273.0,83272.0,0.14318893]
[1743331687563,0.55044599,83273.0,83272.0,0.53023227]
[1743331687763,0.55044599,83273.0,83272.0,0.54477312]
[1743331688707,0.55044599,83273.0,83272.0,0.55678112]
[1743331688902,0.25044599,83273.0,83272.0,0.55678112]
[1743331689467,0.25044599,83273.0,83272.0,0.72118025]
[1743331689663,0.25044599,83273.0,83272.0,0.79948025]
[1743331690861,0.0003372,83273.0,83272.0,0.79948025]
[1743331691475,0.0003372,83273.0,83272.0,0.75536595]
[1743331691889,0.0003372,83273.0,83272.0,0.75636595]
[1743331692262,0.0003372,83273.0,83272.0,0.75536595]
[1743331692677,0.0003372,83273.0,83272.0,0.75936595]
[1743331693904,0.0003372,83273.0,83272.0,0.39771227]
[1743331694065,0.0003372,83273.0,83272.0,0.53383227]
[1743331694565,0.5003372,83273.0,83272.0,0.39771227]
[1743331694772,0.5123452,83273.0,83272.0,0.39771227]
[1743331694969,0.5003372,83273.0,83272.0,0.39771227]
[1743331695400,0.8123452,83273.0,83272.0,0.01066893]
[1743331695941,0.8003372,83273.0,83272.0,0.01066893]
[1743331696485,0.82265641,83273.0,83272.0,0.0041686]
[1743331697695,0.82265641,83273.0,83272.0,0.01066893]
[1743331698312,0.82265641,83273.0,83272.0,0.0041686]
[1743331699735,0.82265641,83273.0,83272.0,0.01066893]
[1743331711452,0.82265641,83273.0,83272.0,0.02267693]
[1743331711656,0.52265641,83273.0,83272.0,0.02267693]
[1743331711855,0.52265641,83273.0,83272.0,0.11311778]
[1743331712229,0.52265641,83273.0,83272.0,0.23340261]
[1743331714354,0.02265641,83273.0,83272.0,0.23340261]
[1743331716896,0.02265641,83273.0,83272.0,0.62044595]
[1743331723781,0.02265641,83273.0,83272.0,0.74073078]
[1743331725164,0.02265641,83273.0,83272.0,0.62044595]
[1743331728281,0.02265641,83273.0,83272.0,1.19228595]
[1743331738292,0.0075444,83273.0,83272.0,1.19228595]
[1743331738488,0.0003372,83281.0,83280.0,0.25216]
[1743331738703,0.0003372,83281.0,83280.0,0.38698568]
[1743331738891,0.0003372,83281.0,83280.0,0.42658066]
[1743331739293,0.0003372,83281.0,83280.0,0.43875849]
[1743331739507,0.0003372,83281.0,83280.0,0.51875849]
[1743331740606,0.0003372,83281.0,83280.0,0.50658066]
[1743331740809,0.0003372,83281.0,83280.0,0.39438093]
[1743331741010,0.0003372,83281.0,83280.0,0.25862093]
[1743331741291,0.0003372,83281.0,83280.0,0.40892178]
[1743331741690,0.0003372,83281.0,83280.0,0.43312536]
[1743331742264,0.5003372,83281.0,83280.0,0.43312536]
[1743331742676,0.5003372,83281.0,83280.0,1.00492536]
[1743331743278,0.5003372,83281.0,83280.0,1.3919687]
[1743331744099,0.5,83281.0,83280.0,1.3919687]